[Event "Titled Tuesday Blitz February 21 Late 2023"]
[White "Matko, Ognjen"]
[Black "Gurevich, Ilya"]
[WhiteFideId "14509717"]
[BlackFideId "2000628"]
[WhiteElo "2295"]
[BlackElo "2586"]
[Result "0-1"]
[Round "04"]
[TimeControl "180+2"]
[Date "2023.02.21"]
[WhiteClock "0:00:56"]
[BlackClock "0:01:03"]

1. e4 {[%clk 0:03:00]}  c5 {[%clk 0:03:00]} 2. Nf3 {[%clk 0:03:00]}  e6 {[%clk 0:03:00]} 3. d4 {[%clk 0:03:00]}  cxd4 {[%clk 0:03:01]} 4. Nxd4 {[%clk 0:03:00]}  Nf6 {[%clk 0:03:02]} 5. Nc3 {[%clk 0:03:00]}  Nc6 {[%clk 0:03:02]} 6. Nxc6 {[%clk 0:02:53]}  bxc6 {[%clk 0:03:03]} 7. e5 {[%clk 0:02:53]}  Nd5 {[%clk 0:03:04]} 8. Nxd5 {[%clk 0:02:52]}  cxd5 {[%clk 0:03:05]} 9. Bd3 {[%clk 0:02:52]}  Ba6 {[%clk 0:03:03]} 10. O-O {[%clk 0:02:50]}  Bxd3 {[%clk 0:03:02]} 11. cxd3 {[%clk 0:02:51]}  d6 {[%clk 0:03:03]} 12. d4 {[%clk 0:02:49]}  Be7 {[%clk 0:03:01]} 13. Qg4 {[%clk 0:02:48]}  g6 {[%clk 0:02:49]} 14. Bh6 {[%clk 0:02:46]}  Bf8 {[%clk 0:02:38]} 15. Bxf8 {[%clk 0:02:35]}  Kxf8 {[%clk 0:02:38]} 16. exd6 {[%clk 0:02:33]}  Qxd6 {[%clk 0:02:36]} 17. Rfe1 {[%clk 0:02:33]}  Kg7 {[%clk 0:02:36]} 18. Re3 {[%clk 0:02:32]}  Rhc8 {[%clk 0:02:31]} 19. h4 {[%clk 0:02:24]}  h5 {[%clk 0:02:28]} 20. Qg5 {[%clk 0:02:17]}  Qd8 {[%clk 0:02:23]} 21. Qf4 {[%clk 0:02:16]}  Qf6 {[%clk 0:02:22]} 22. Qxf6+ {[%clk 0:02:10]}  Kxf6 {[%clk 0:02:23]} 23. Rf3+ {[%clk 0:02:09]}  Ke7 {[%clk 0:02:23]} 24. Rc3 {[%clk 0:02:07]}  Rxc3 {[%clk 0:02:21]} 25. bxc3 {[%clk 0:02:07]}  Rb8 {[%clk 0:02:22]} 26. g3 {[%clk 0:02:00]}  Rb2 {[%clk 0:02:20]} 27. a4 {[%clk 0:01:57]}  Rb3 {[%clk 0:02:18]} 28. Rc1 {[%clk 0:01:56]}  Ra3 {[%clk 0:02:18]} 29. Kf1 {[%clk 0:01:53]}  Rxa4 {[%clk 0:02:18]} 30. Ke2 {[%clk 0:01:53]}  Ra2+ {[%clk 0:02:17]} 31. Ke3 {[%clk 0:01:53]}  Kf6 {[%clk 0:02:14]} 32. Rb1 {[%clk 0:01:52]}  Rc2 {[%clk 0:02:12]} 33. Rb3 {[%clk 0:01:51]}  a5 {[%clk 0:02:03]} 34. Ra3 {[%clk 0:01:51]}  Kf5 {[%clk 0:01:59]} 35. Kf3 {[%clk 0:01:42]}  Rc1 {[%clk 0:01:53]} 36. Ke3 {[%clk 0:01:39]}  Kg4 {[%clk 0:01:52]} 37. Kd2 {[%clk 0:01:36]}  Rf1 {[%clk 0:01:51]} 38. Ke2 {[%clk 0:01:36]}  Rc1 {[%clk 0:01:47]} 39. Kd2 {[%clk 0:01:36]}  Rb1 {[%clk 0:01:46]} 40. Rxa5 {[%clk 0:01:35]}  Kf3 {[%clk 0:01:43]} 41. Ra7 {[%clk 0:01:35]}  Kxf2 {[%clk 0:01:40]} 42. Rxf7+ {[%clk 0:01:34]}  Kxg3 {[%clk 0:01:41]} 43. Rf6 {[%clk 0:01:34]}  Kxh4 {[%clk 0:01:39]} 44. Rxg6 {[%clk 0:01:34]}  Rb6 {[%clk 0:01:38]} 45. Ke3 {[%clk 0:01:30]}  Kh3 {[%clk 0:01:38]} 46. Kf4 {[%clk 0:01:23]}  h4 {[%clk 0:01:36]} 47. Ke5 {[%clk 0:01:23]}  Rc6 {[%clk 0:01:31]} 48. Rg8 {[%clk 0:01:18]}  Kh2 {[%clk 0:01:30]} 49. Kf4 {[%clk 0:01:14]}  h3 {[%clk 0:01:29]} 50. Ke5 {[%clk 0:01:12]}  Kh1 {[%clk 0:01:29]} 51. Rg5 {[%clk 0:01:09]}  h2 {[%clk 0:01:28]} 52. Rg3 {[%clk 0:01:09]}  Rb6 {[%clk 0:01:26]} 53. Kf4 {[%clk 0:01:05]}  Rb1 {[%clk 0:01:24]} 54. Kf3 {[%clk 0:01:04]}  Rg1 {[%clk 0:01:20]} 55. Rh3 {[%clk 0:00:59]}  Rg8 {[%clk 0:01:20]} 56. Kf2 {[%clk 0:00:56]}  Rf8+ {[%clk 0:01:18]} 57. Ke2 {[%clk 0:00:57]}  Kg2 {[%clk 0:01:14]} 58. Rh7 {[%clk 0:00:56]}  h1=Q {[%clk 0:01:02]} 59. Rg7+ {[%clk 0:00:56]}  Kh2 {[%clk 0:01:02]} 60. Rh7+ {[%clk 0:00:56]}  Kg1 {[%clk 0:01:03]} 0-1


[Site "https://www.chess.com"]

[Event "Titled Tuesday Blitz February 21 Late 2023"]
[White "Rego, Pedro Filipe"]
[Black "Stanisz, Patryk"]
[WhiteFideId "1904310"]
[BlackFideId "1123106"]
[WhiteElo "2312"]
[BlackElo "2161"]
[Result "1-0"]
[Round "04"]
[TimeControl "180+2"]
[Date "2023.02.21"]
[WhiteClock "0:00:57"]
[BlackClock "0:00:16"]

1. c4 {[%clk 0:03:00]}  c6 {[%clk 0:02:59]} 2. d4 {[%clk 0:03:00]}  d5 {[%clk 0:02:59]} 3. Nc3 {[%clk 0:03:01]}  Nf6 {[%clk 0:02:58]} 4. Nf3 {[%clk 0:03:01]}  e6 {[%clk 0:02:58]} 5. e3 {[%clk 0:03:00]}  Nbd7 {[%clk 0:02:58]} 6. Bd3 {[%clk 0:02:59]}  dxc4 {[%clk 0:02:58]} 7. Bxc4 {[%clk 0:03:00]}  b5 {[%clk 0:02:59]} 8. Bb3 {[%clk 0:02:57]}  b4 {[%clk 0:03:00]} 9. Na4 {[%clk 0:02:54]}  c5 {[%clk 0:02:59]} 10. dxc5 {[%clk 0:02:51]}  Bxc5 {[%clk 0:02:57]} 11. Nxc5 {[%clk 0:02:50]}  Nxc5 {[%clk 0:02:58]} 12. Qxd8+ {[%clk 0:02:50]}  Kxd8 {[%clk 0:02:59]} 13. Bc4 {[%clk 0:02:45]}  Bb7 {[%clk 0:02:49]} 14. Bd2 {[%clk 0:02:44]}  a5 {[%clk 0:02:49]} 15. a3 {[%clk 0:02:43]}  b3 {[%clk 0:02:46]} 16. Ke2 {[%clk 0:02:40]}  Ke7 {[%clk 0:02:45]} 17. Nd4 {[%clk 0:02:35]}  Rhd8 {[%clk 0:02:39]} 18. f3 {[%clk 0:02:31]}  Bd5 {[%clk 0:02:18]} 19. Bxd5 {[%clk 0:02:26]}  Rxd5 {[%clk 0:02:17]} 20. Bc3 {[%clk 0:02:22]}  Kf8 {[%clk 0:02:09]} 21. Rac1 {[%clk 0:02:20]}  e5 {[%clk 0:02:01]} 22. e4 {[%clk 0:02:14]}  Rd7 {[%clk 0:01:46]} 23. Nc6 {[%clk 0:02:12]}  Nd3 {[%clk 0:01:42]} 24. Rcd1 {[%clk 0:02:06]}  Nf4+ {[%clk 0:01:40]} 25. Kf2 {[%clk 0:02:06]}  Rc8 {[%clk 0:01:05]} 26. Nxe5 {[%clk 0:01:58]}  Rdc7 {[%clk 0:00:53]} 27. g3 {[%clk 0:01:46]}  Ne6 {[%clk 0:00:48]} 28. Rd2 {[%clk 0:01:42]}  Rxc3 {[%clk 0:00:44]} 29. bxc3 {[%clk 0:01:42]}  Rxc3 {[%clk 0:00:45]} 30. a4 {[%clk 0:01:38]}  g5 {[%clk 0:00:41]} 31. Rb1 {[%clk 0:01:37]}  Nc5 {[%clk 0:00:38]} 32. Rdb2 {[%clk 0:01:23]}  Ke7 {[%clk 0:00:28]} 33. Nc6+ {[%clk 0:01:17]}  Kf8 {[%clk 0:00:18]} 34. Ne5 {[%clk 0:01:16]}  Ke7 {[%clk 0:00:18]} 35. Ke2 {[%clk 0:01:10]}  Ke6 {[%clk 0:00:18]} 36. Nc6 {[%clk 0:00:58]}  Nxa4 {[%clk 0:00:17]} 37. Nd4+ {[%clk 0:00:58]}  Ke7 {[%clk 0:00:17]} 38. Rxb3 {[%clk 0:00:57]}  Rc2+ {[%clk 0:00:16]} 39. Nxc2 {[%clk 0:00:57]} 1-0


[Site "https://www.chess.com"]

[Event "Titled Tuesday Blitz February 21 Late 2023"]
[White "Jarocka, Liwia"]
[Black "Hernandez Jimenez, Alexander Andres"]
[WhiteFideId "21807558"]
[BlackFideId "3900452"]
[WhiteElo "2225"]
[BlackElo "2134"]
[Result "1-0"]
[Round "04"]
[TimeControl "180+2"]
[Date "2023.02.21"]
[WhiteClock "0:00:48"]
[BlackClock "0:00:03"]

1. e4 {[%clk 0:03:00]}  c5 {[%clk 0:02:53]} 2. Nf3 {[%clk 0:03:00]}  d6 {[%clk 0:02:52]} 3. d4 {[%clk 0:02:59]}  cxd4 {[%clk 0:02:44]} 4. Nxd4 {[%clk 0:03:00]}  Nf6 {[%clk 0:02:42]} 5. Nc3 {[%clk 0:03:00]}  a6 {[%clk 0:02:43]} 6. Be3 {[%clk 0:02:57]}  e5 {[%clk 0:02:41]} 7. Nb3 {[%clk 0:02:57]}  Be6 {[%clk 0:02:41]} 8. f3 {[%clk 0:02:57]}  Nbd7 {[%clk 0:02:41]} 9. Qd2 {[%clk 0:02:57]}  h5 {[%clk 0:02:41]} 10. Nd5 {[%clk 0:02:54]}  Rc8 {[%clk 0:02:40]} 11. c4 {[%clk 0:02:52]}  Be7 {[%clk 0:02:37]} 12. Be2 {[%clk 0:02:51]}  b5 {[%clk 0:02:35]} 13. cxb5 {[%clk 0:02:49]}  axb5 {[%clk 0:02:35]} 14. Bxb5 {[%clk 0:02:48]}  O-O {[%clk 0:02:32]} 15. O-O {[%clk 0:02:47]}  Nxd5 {[%clk 0:02:28]} 16. exd5 {[%clk 0:02:46]}  Bf5 {[%clk 0:02:29]} 17. Rac1 {[%clk 0:02:45]}  Nf6 {[%clk 0:02:16]} 18. Na5 {[%clk 0:02:30]}  Nxd5 {[%clk 0:01:54]} 19. Nc6 {[%clk 0:02:28]}  Rxc6 {[%clk 0:01:51]} 20. Bxc6 {[%clk 0:02:28]}  Nxe3 {[%clk 0:01:51]} 21. Qxe3 {[%clk 0:02:28]}  Bg5 {[%clk 0:01:50]} 22. f4 {[%clk 0:02:13]}  Bxf4 {[%clk 0:01:47]} 23. Rxf4 {[%clk 0:02:13]}  exf4 {[%clk 0:01:38]} 24. Qxf4 {[%clk 0:02:13]}  Qb6+ {[%clk 0:01:33]} 25. Qf2 {[%clk 0:02:13]}  Qxf2+ {[%clk 0:01:31]} 26. Kxf2 {[%clk 0:02:13]}  Rb8 {[%clk 0:01:28]} 27. b3 {[%clk 0:02:12]}  Kf8 {[%clk 0:01:27]} 28. Bd5 {[%clk 0:02:08]}  Be6 {[%clk 0:01:24]} 29. Rd1 {[%clk 0:02:04]}  Ke7 {[%clk 0:01:21]} 30. g3 {[%clk 0:01:56]}  Rb5 {[%clk 0:01:19]} 31. Bf3 {[%clk 0:01:51]}  g6 {[%clk 0:01:12]} 32. Rd2 {[%clk 0:01:51]}  d5 {[%clk 0:01:09]} 33. Rc2 {[%clk 0:01:50]}  Kd6 {[%clk 0:01:08]} 34. Ke3 {[%clk 0:01:46]}  Rb4 {[%clk 0:01:05]} 35. Rd2 {[%clk 0:01:42]}  Ke5 {[%clk 0:01:03]} 36. Kf2 {[%clk 0:01:41]}  d4 {[%clk 0:01:03]} 37. Re2+ {[%clk 0:01:35]}  Kd6 {[%clk 0:01:00]} 38. Be4 {[%clk 0:01:36]}  Bd5 {[%clk 0:00:54]} 39. Bd3 {[%clk 0:01:35]}  f5 {[%clk 0:00:50]} 40. Rc2 {[%clk 0:01:35]}  Be4 {[%clk 0:00:49]} 41. Ke2 {[%clk 0:01:34]}  g5 {[%clk 0:00:41]} 42. Rc4 {[%clk 0:01:31]}  Rxc4 {[%clk 0:00:41]} 43. Bxc4 {[%clk 0:01:30]}  Kc5 {[%clk 0:00:40]} 44. Bd3 {[%clk 0:01:28]}  Kb4 {[%clk 0:00:39]} 45. Kd2 {[%clk 0:01:18]}  h4 {[%clk 0:00:32]} 46. a4 {[%clk 0:01:05]}  hxg3 {[%clk 0:00:22]} 47. hxg3 {[%clk 0:01:03]}  Bd5 {[%clk 0:00:22]} 48. Bxf5 {[%clk 0:00:58]}  Bxb3 {[%clk 0:00:18]} 49. Kd3 {[%clk 0:00:57]}  Kc5 {[%clk 0:00:18]} 50. Bd7 {[%clk 0:00:56]}  Kd5 {[%clk 0:00:16]} 51. a5 {[%clk 0:00:55]}  Bc4+ {[%clk 0:00:16]} 52. Kd2 {[%clk 0:00:56]}  Ke4 {[%clk 0:00:05]} 53. Bc6+ {[%clk 0:00:50]}  Kf5 {[%clk 0:00:03]} 54. Bf3 {[%clk 0:00:50]}  Ba6 {[%clk 0:00:02]} 55. Be2 {[%clk 0:00:49]}  Ke5 {[%clk 0:00:03]} 56. Bxa6 {[%clk 0:00:48]} 1-0


[Site "https://www.chess.com"]

[Event "Titled Tuesday Blitz February 21 Late 2023"]
[White "Lopez Perdomo, Juan David"]
[Black "ArturoCaceres"]
[WhiteFideId "4405137"]
[WhiteElo "2029"]
[BlackElo "2405"]
[Result "0-1"]
[Round "04"]
[TimeControl "180+2"]
[Date "2023.02.21"]
[WhiteClock "0:00:04"]
[BlackClock "0:00:44"]

1. e4 {[%clk 0:03:00]}  a6 {[%clk 0:02:57]} 2. d4 {[%clk 0:03:00]}  b5 {[%clk 0:02:58]} 3. f4 {[%clk 0:03:00]}  Bb7 {[%clk 0:02:59]} 4. Bd3 {[%clk 0:02:59]}  e6 {[%clk 0:02:59]} 5. c3 {[%clk 0:02:59]}  Nf6 {[%clk 0:03:00]} 6. Qe2 {[%clk 0:02:58]}  c5 {[%clk 0:03:01]} 7. Nf3 {[%clk 0:02:56]}  d5 {[%clk 0:03:01]} 8. e5 {[%clk 0:02:56]}  Ne4 {[%clk 0:03:02]} 9. Nbd2 {[%clk 0:02:53]}  Nxd2 {[%clk 0:03:01]} 10. Bxd2 {[%clk 0:02:52]}  Nc6 {[%clk 0:03:02]} 11. f5 {[%clk 0:02:43]}  exf5 {[%clk 0:02:56]} 12. Bxf5 {[%clk 0:02:42]}  Be7 {[%clk 0:02:45]} 13. e6 {[%clk 0:02:36]}  fxe6 {[%clk 0:02:46]} 14. Bxe6 {[%clk 0:02:35]}  cxd4 {[%clk 0:02:43]} 15. O-O {[%clk 0:02:25]}  Qb6 {[%clk 0:02:41]} 16. Qf2 {[%clk 0:02:11]}  Bc5 {[%clk 0:02:28]} 17. Nxd4 {[%clk 0:01:57]}  Rf8 {[%clk 0:02:15]} 18. Bf7+ {[%clk 0:01:28]}  Ke7 {[%clk 0:01:55]} 19. Bg5+ {[%clk 0:01:25]}  Kd6 {[%clk 0:01:55]} 20. Nf5+ {[%clk 0:01:13]}  Kd7 {[%clk 0:01:49]} 21. Be3 {[%clk 0:00:57]}  Bxe3 {[%clk 0:01:27]} 22. Nxe3 {[%clk 0:00:57]}  Nd8 {[%clk 0:01:24]} 23. Qf5+ {[%clk 0:00:18]}  Kc7 {[%clk 0:01:21]} 24. Qe5+ {[%clk 0:00:18]}  Qd6 {[%clk 0:01:18]} 25. Qxg7 {[%clk 0:00:19]}  Qe7 {[%clk 0:01:14]} 26. Rae1 {[%clk 0:00:15]}  Kb8 {[%clk 0:00:59]} 27. Qg3+ {[%clk 0:00:06]}  Ka7 {[%clk 0:00:57]} 28. Bxd5 {[%clk 0:00:07]}  Rxf1+ {[%clk 0:00:56]} 29. Rxf1 {[%clk 0:00:05]}  Bxd5 {[%clk 0:00:54]} 30. Nxd5 {[%clk 0:00:06]}  Qc5+ {[%clk 0:00:55]} 31. Ne3 {[%clk 0:00:05]}  Rb8 {[%clk 0:00:49]} 32. Kh1 {[%clk 0:00:05]}  Rb7 {[%clk 0:00:49]} 33. Nc2 {[%clk 0:00:03]}  Rd7 {[%clk 0:00:48]} 34. Nd4 {[%clk 0:00:04]}  Nc6 {[%clk 0:00:44]} 0-1


[Site "https://www.chess.com"]

[Event "Titled Tuesday Blitz February 21 Late 2023"]
[White "Curtis, John"]
[Black "Kostiukov, Alexandr"]
[WhiteFideId "3200256"]
[BlackFideId "14108100"]
[WhiteElo "2292"]
[BlackElo "2271"]
[Result "1-0"]
[Round "04"]
[TimeControl "180+2"]
[Date "2023.02.21"]
[WhiteClock "0:01:24"]
[BlackClock "0:01:11"]

1. e4 {[%clk 0:03:00]}  c5 {[%clk 0:02:59]} 2. Nf3 {[%clk 0:03:00]}  g6 {[%clk 0:02:56]} 3. d4 {[%clk 0:02:58]}  cxd4 {[%clk 0:02:56]} 4. Nxd4 {[%clk 0:02:58]}  Bg7 {[%clk 0:02:56]} 5. Be3 {[%clk 0:02:58]}  Nc6 {[%clk 0:02:56]} 6. Qd2 {[%clk 0:02:56]}  Nf6 {[%clk 0:02:56]} 7. f3 {[%clk 0:02:53]}  O-O {[%clk 0:02:55]} 8. Nc3 {[%clk 0:02:53]}  d5 {[%clk 0:02:55]} 9. O-O-O {[%clk 0:02:42]}  Nxd4 {[%clk 0:02:48]} 10. Bxd4 {[%clk 0:02:34]}  dxe4 {[%clk 0:02:48]} 11. Nxe4 {[%clk 0:02:28]}  Nxe4 {[%clk 0:02:46]} 12. fxe4 {[%clk 0:02:28]}  Bxd4 {[%clk 0:02:39]} 13. Qxd4 {[%clk 0:02:27]}  Qxd4 {[%clk 0:02:31]} 14. Rxd4 {[%clk 0:02:27]}  Be6 {[%clk 0:02:27]} 15. Bc4 {[%clk 0:02:23]}  Bxc4 {[%clk 0:02:24]} 16. Rxc4 {[%clk 0:02:23]}  Rac8 {[%clk 0:02:25]} 17. Rxc8 {[%clk 0:02:21]}  Rxc8 {[%clk 0:02:26]} 18. Kd2 {[%clk 0:02:21]}  f5 {[%clk 0:02:19]} 19. Rc1 {[%clk 0:02:10]}  Kf7 {[%clk 0:02:12]} 20. c4 {[%clk 0:02:08]}  Kf6 {[%clk 0:02:12]} 21. Ke3 {[%clk 0:02:08]}  Ke5 {[%clk 0:02:10]} 22. exf5 {[%clk 0:01:48]}  gxf5 {[%clk 0:02:08]} 23. b4 {[%clk 0:01:46]}  h5 {[%clk 0:02:06]} 24. g3 {[%clk 0:01:44]}  h4 {[%clk 0:02:04]} 25. c5 {[%clk 0:01:40]}  hxg3 {[%clk 0:01:24]} 26. hxg3 {[%clk 0:01:39]}  a5 {[%clk 0:01:25]} 27. b5 {[%clk 0:01:38]}  Kd5 {[%clk 0:01:24]} 28. Rd1+ {[%clk 0:01:34]}  Kc4 {[%clk 0:01:22]} 29. Rd7 {[%clk 0:01:33]}  e6 {[%clk 0:01:13]} 30. b6 {[%clk 0:01:24]}  Kxc5 {[%clk 0:01:11]} 31. Rc7+ {[%clk 0:01:24]} 1-0


[Site "https://www.chess.com"]

[Event "Titled Tuesday Blitz February 21 Late 2023"]
[White "Delgado Rosas, Fatima Alexandra"]
[Black "Tarnowska, Aleksandra"]
[WhiteFideId "6603963"]
[BlackFideId "1180967"]
[WhiteElo "1500"]
[BlackElo "1835"]
[Result "1-0"]
[Round "04"]
[TimeControl "180+2"]
[Date "2023.02.21"]
[WhiteClock "0:00:29"]
[BlackClock "0:00:07"]

1. d4 {[%clk 0:03:00]}  d5 {[%clk 0:02:58]} 2. c4 {[%clk 0:02:55]}  e6 {[%clk 0:02:58]} 3. Nc3 {[%clk 0:02:55]}  Nf6 {[%clk 0:02:59]} 4. Bg5 {[%clk 0:02:56]}  Be7 {[%clk 0:02:58]} 5. e3 {[%clk 0:02:56]}  O-O {[%clk 0:02:58]} 6. Nf3 {[%clk 0:02:57]}  h6 {[%clk 0:02:59]} 7. Bh4 {[%clk 0:02:55]}  b6 {[%clk 0:02:59]} 8. cxd5 {[%clk 0:02:52]}  exd5 {[%clk 0:02:58]} 9. Bd3 {[%clk 0:02:53]}  Bb7 {[%clk 0:02:58]} 10. O-O {[%clk 0:02:53]}  Nbd7 {[%clk 0:02:58]} 11. Qe2 {[%clk 0:02:48]}  Ne4 {[%clk 0:02:41]} 12. Bxe7 {[%clk 0:02:42]}  Qxe7 {[%clk 0:02:40]} 13. Bxe4 {[%clk 0:02:42]}  dxe4 {[%clk 0:02:41]} 14. Nd2 {[%clk 0:02:42]}  Nf6 {[%clk 0:02:25]} 15. Rac1 {[%clk 0:02:42]}  Rfd8 {[%clk 0:02:02]} 16. Rfd1 {[%clk 0:02:32]}  Rac8 {[%clk 0:01:52]} 17. Nb3 {[%clk 0:02:30]}  Nd5 {[%clk 0:01:34]} 18. Qg4 {[%clk 0:02:15]}  Nxc3 {[%clk 0:01:29]} 19. Rxc3 {[%clk 0:02:16]}  Rd6 {[%clk 0:01:28]} 20. Rdc1 {[%clk 0:02:13]}  Rg6 {[%clk 0:01:25]} 21. Qf4 {[%clk 0:02:11]}  c6 {[%clk 0:01:08]} 22. Nd2 {[%clk 0:02:08]}  Re8 {[%clk 0:00:55]} 23. Nc4 {[%clk 0:02:07]}  Rf6 {[%clk 0:00:46]} 24. Qg3 {[%clk 0:02:03]}  Rg6 {[%clk 0:00:46]} 25. Qf4 {[%clk 0:01:57]}  Rf6 {[%clk 0:00:45]} 26. Qh4 {[%clk 0:01:57]}  Qe6 {[%clk 0:00:34]} 27. b3 {[%clk 0:01:49]}  Qf5 {[%clk 0:00:30]} 28. Ne5 {[%clk 0:01:47]}  c5 {[%clk 0:00:23]} 29. R1c2 {[%clk 0:01:10]}  cxd4 {[%clk 0:00:23]} 30. exd4 {[%clk 0:01:10]}  e3 {[%clk 0:00:09]} 31. f3 {[%clk 0:01:04]}  e2 {[%clk 0:00:04]} 32. Rxe2 {[%clk 0:01:04]}  Qb1+ {[%clk 0:00:04]} 33. Qe1 {[%clk 0:01:04]}  Qxe1+ {[%clk 0:00:04]} 34. Rxe1 {[%clk 0:01:05]}  Rd6 {[%clk 0:00:03]} 35. Rce3 {[%clk 0:01:00]}  Rxd4 {[%clk 0:00:02]} 36. Nc4 {[%clk 0:00:57]}  Rxe3 {[%clk 0:00:03]} 37. Rxe3 {[%clk 0:00:57]}  Rd1+ {[%clk 0:00:03]} 38. Kf2 {[%clk 0:00:58]}  Rc1 {[%clk 0:00:03]} 39. Re8+ {[%clk 0:00:56]}  Kh7 {[%clk 0:00:04]} 40. Re7 {[%clk 0:00:57]}  Ba6 {[%clk 0:00:04]} 41. Rxa7 {[%clk 0:00:56]}  Bxc4 {[%clk 0:00:04]} 42. bxc4 {[%clk 0:00:57]}  Rxc4 {[%clk 0:00:04]} 43. Kg3 {[%clk 0:00:54]}  Rc2 {[%clk 0:00:04]} 44. a4 {[%clk 0:00:52]}  f6 {[%clk 0:00:04]} 45. Rb7 {[%clk 0:00:51]}  Rc4 {[%clk 0:00:04]} 46. Ra7 {[%clk 0:00:50]}  Rb4 {[%clk 0:00:03]} 47. h3 {[%clk 0:00:50]}  Kg6 {[%clk 0:00:03]} 48. h4 {[%clk 0:00:50]}  h5 {[%clk 0:00:04]} 49. Kf2 {[%clk 0:00:49]}  Rb2+ {[%clk 0:00:04]} 50. Kg1 {[%clk 0:00:49]}  Rb3 {[%clk 0:00:04]} 51. Rb7 {[%clk 0:00:48]}  Ra3 {[%clk 0:00:05]} 52. Ra7 {[%clk 0:00:47]}  b5 {[%clk 0:00:05]} 53. a5 {[%clk 0:00:47]}  b4 {[%clk 0:00:06]} 54. a6 {[%clk 0:00:47]}  b3 {[%clk 0:00:06]} 55. Rb7 {[%clk 0:00:46]}  b2 {[%clk 0:00:06]} 56. Rxb2 {[%clk 0:00:25]}  Rxa6 {[%clk 0:00:06]} 57. Kh2 {[%clk 0:00:25]}  Ra4 {[%clk 0:00:06]} 58. Kg3 {[%clk 0:00:25]}  Rc4 {[%clk 0:00:06]} 59. Rd2 {[%clk 0:00:25]}  Ra4 {[%clk 0:00:06]} 60. Rd8 {[%clk 0:00:26]}  Rb4 {[%clk 0:00:06]} 61. Rc8 {[%clk 0:00:26]}  Ra4 {[%clk 0:00:06]} 62. Rc2 {[%clk 0:00:26]}  Rd4 {[%clk 0:00:07]} 63. Rf2 {[%clk 0:00:26]}  Rb4 {[%clk 0:00:07]} 64. Rf1 {[%clk 0:00:27]}  Ra4 {[%clk 0:00:08]} 65. Rg1 {[%clk 0:00:28]}  Rb4 {[%clk 0:00:08]} 66. Rh1 {[%clk 0:00:29]}  Ra4 {[%clk 0:00:09]} 67. Kh2 {[%clk 0:00:29]}  Rxh4+ {[%clk 0:00:08]} 68. Kg1 {[%clk 0:00:30]}  Rh2 {[%clk 0:00:09]} 69. Rxh2 {[%clk 0:00:30]}  Kg5 {[%clk 0:00:06]} 70. g3 {[%clk 0:00:29]}  g6 {[%clk 0:00:07]} 71. Kg2 {[%clk 0:00:30]}  Kh6 {[%clk 0:00:07]} 72. g4 {[%clk 0:00:29]} 1-0


[Site "https://www.chess.com"]

[Event "Titled Tuesday Blitz February 21 Late 2023"]
[White "Avgoustopoulos, Christian"]
[Black "Gamage, Wanshini Vidusama"]
[WhiteFideId "2122294"]
[BlackFideId "9953752"]
[WhiteElo "1969"]
[BlackElo "1089"]
[Result "1/2-1/2"]
[Round "04"]
[TimeControl "180+2"]
[Date "2023.02.21"]
[WhiteClock "0:00:21"]
[BlackClock "0:00:18"]

1. e4 {[%clk 0:03:00]}  c5 {[%clk 0:02:59]} 2. Nf3 {[%clk 0:03:00]}  d6 {[%clk 0:02:59]} 3. d4 {[%clk 0:03:00]}  cxd4 {[%clk 0:03:00]} 4. Nxd4 {[%clk 0:03:00]}  Nf6 {[%clk 0:03:01]} 5. Nc3 {[%clk 0:02:59]}  a6 {[%clk 0:03:01]} 6. Be2 {[%clk 0:02:59]}  e5 {[%clk 0:03:00]} 7. Nb3 {[%clk 0:02:58]}  Be7 {[%clk 0:02:58]} 8. Be3 {[%clk 0:02:57]}  O-O {[%clk 0:02:57]} 9. O-O {[%clk 0:02:57]}  Be6 {[%clk 0:02:53]} 10. f4 {[%clk 0:02:49]}  b5 {[%clk 0:02:42]} 11. Nd2 {[%clk 0:02:43]}  exf4 {[%clk 0:02:25]} 12. Bxf4 {[%clk 0:02:40]}  Nbd7 {[%clk 0:02:19]} 13. a3 {[%clk 0:02:39]}  Ne5 {[%clk 0:02:13]} 14. Nf3 {[%clk 0:02:32]}  Qc7 {[%clk 0:02:01]} 15. Nxe5 {[%clk 0:02:19]}  dxe5 {[%clk 0:01:57]} 16. Be3 {[%clk 0:02:17]}  Rfd8 {[%clk 0:01:51]} 17. Qe1 {[%clk 0:02:17]}  Bc5 {[%clk 0:01:31]} 18. Bf3 {[%clk 0:02:09]}  Qb6 {[%clk 0:01:18]} 19. Bxc5 {[%clk 0:02:06]}  Qxc5+ {[%clk 0:01:19]} 20. Qf2 {[%clk 0:02:05]}  Rd4 {[%clk 0:01:06]} 21. Rad1 {[%clk 0:01:46]}  Rad8 {[%clk 0:01:06]} 22. Rxd4 {[%clk 0:01:45]}  Qxd4 {[%clk 0:01:01]} 23. Qxd4 {[%clk 0:01:43]}  Rxd4 {[%clk 0:01:02]} 24. Rd1 {[%clk 0:01:37]}  Rxd1+ {[%clk 0:01:02]} 25. Nxd1 {[%clk 0:01:33]}  Kf8 {[%clk 0:00:58]} 26. Kf2 {[%clk 0:01:21]}  Ke7 {[%clk 0:00:58]} 27. Ke3 {[%clk 0:01:19]}  Ng4+ {[%clk 0:00:52]} 28. Bxg4 {[%clk 0:01:18]}  Bxg4 {[%clk 0:00:53]} 29. Nf2 {[%clk 0:01:14]}  Be6 {[%clk 0:00:52]} 30. Nd3 {[%clk 0:01:13]}  f6 {[%clk 0:00:52]} 31. Nc5 {[%clk 0:01:12]}  Bc8 {[%clk 0:00:52]} 32. Kd3 {[%clk 0:01:01]}  Kd6 {[%clk 0:00:51]} 33. b4 {[%clk 0:01:02]}  h5 {[%clk 0:00:46]} 34. c4 {[%clk 0:00:59]}  h4 {[%clk 0:00:38]} 35. g3 {[%clk 0:00:56]}  hxg3 {[%clk 0:00:38]} 36. hxg3 {[%clk 0:00:56]}  g6 {[%clk 0:00:39]} 37. cxb5 {[%clk 0:00:55]}  axb5 {[%clk 0:00:39]} 38. Ke3 {[%clk 0:00:54]}  f5 {[%clk 0:00:35]} 39. Nd3 {[%clk 0:00:50]}  Ke6 {[%clk 0:00:30]} 40. Nc5+ {[%clk 0:00:49]}  Kf6 {[%clk 0:00:31]} 41. Nd3 {[%clk 0:00:40]}  Bb7 {[%clk 0:00:28]} 42. Nc5 {[%clk 0:00:38]}  Bxe4 {[%clk 0:00:17]} 43. Nxe4+ {[%clk 0:00:38]}  fxe4 {[%clk 0:00:18]} 44. Kxe4 {[%clk 0:00:38]}  Ke6 {[%clk 0:00:19]} 45. g4 {[%clk 0:00:20]}  g5 {[%clk 0:00:14]} 46. Ke3 {[%clk 0:00:17]}  Kd5 {[%clk 0:00:15]} 47. Kd3 {[%clk 0:00:18]}  e4+ {[%clk 0:00:14]} 48. Ke3 {[%clk 0:00:18]}  Ke5 {[%clk 0:00:12]} 49. Ke2 {[%clk 0:00:17]}  Kd4 {[%clk 0:00:10]} 50. Kd2 {[%clk 0:00:17]}  Kc4 {[%clk 0:00:10]} 51. Ke3 {[%clk 0:00:17]}  Kb3 {[%clk 0:00:11]} 52. Kxe4 {[%clk 0:00:18]}  Kxa3 {[%clk 0:00:11]} 53. Kf5 {[%clk 0:00:18]}  Kxb4 {[%clk 0:00:12]} 54. Kxg5 {[%clk 0:00:18]}  Kc3 {[%clk 0:00:12]} 55. Kh6 {[%clk 0:00:18]}  b4 {[%clk 0:00:13]} 56. g5 {[%clk 0:00:18]}  b3 {[%clk 0:00:14]} 57. g6 {[%clk 0:00:19]}  b2 {[%clk 0:00:15]} 58. g7 {[%clk 0:00:20]}  b1=Q {[%clk 0:00:16]} 59. g8=Q {[%clk 0:00:21]}  Qh1+ {[%clk 0:00:16]} 60. Kg7 {[%clk 0:00:21]}  Qg1+ {[%clk 0:00:17]} 61. Kf8 {[%clk 0:00:21]}  Qxg8+ {[%clk 0:00:18]} 62. Kxg8 {[%clk 0:00:21]} 1/2-1/2


[Site "https://www.chess.com"]